[Event "ESP-chT Honor Division 2022"]
[Site "Linares"]
[Date "2022.09.21"]
[Round "5.7"]
[White "Fedoseev, Vladimir"]
[Black "Harikrishna, Pentala"]
[Result "1/2-1/2"]
[ECO "A29"]
[WhiteElo "2685"]
[BlackElo "2716"]
[Annotator "TA"]
[PlyCount "60"]
[EventDate "2022.09.17"]
[EventType "team-tourn"]
[EventCountry "ESP"]
[SourceTitle "playchess.com"]
[Source "ChessBase"]
[SourceQuality "1"]
[TimeControl "5400+30"]

{[%evp 16,60,0,0,0,0,0,0,27,0,0,0,0,0,0,0,12,14,0,11,6,0,0,-8,0,0,0,0,0,0,0,0,0,0,0,0,0,0,0,0,27,0,0,0,16,0,0]} 1. c4 {[%emt 0:01:34]} e5 {[%emt 0:00:25]} 2. Nc3 {[%emt 0:00:10]} Nf6 {[%emt 0:00:21]} 3. Nf3 {[%emt 0:00:46]} Nc6 {[%emt 0:00:07]} 4. g3 {[%emt 0:03:53]} d5 {[%emt 0:02:35]} 5. cxd5 {[%emt 0:00:10]} Nxd5 {[%emt 0:00:04]} 6. Bg2 {[%emt 0:00:12]} Nb6 {[%emt 0:01:06]} 7. O-O {[%emt 0:00:39]} Be7 {[%emt 0:00:13]} 8. b3 {[%emt 0:01:18]} O-O {[%emt 0:01:35]} 9. Bb2 {[%emt 0:00:37][%cal Od2d4]} Re8 {[%emt 0:01:16] A29: English Opening: Four Knights Variation with 4 g3.} 10. Rc1 {[%emt 0:00:30][%cal Od2d4]} Bg4 {[%emt 0:03:33]} 11. Ne4 {[%emt 0:08:37] [#]} f6 $146 {[%emt 0:06:20]} ({Predecessor:} 11... Bf8 12. Rxc6 Bxf3 13. Bxf3 bxc6 14. Nc3 Nd5 15. d3 Bc5 16. Qc2 Bd4 17. Na4 Nb4 {1-0 (43) Sidorika,V (2331)-Estrada Nieto,J (2280) Chess.com INT 2021}) 12. a3 {[%emt 0:00:51]} a5 {[%emt 0:01:58]} 13. d3 {[%emt 0:01:12]} Qd7 {[%emt 0:04:08]} 14. Nc5 {[%emt 0:03:26]} Bxc5 {[%emt 0:01:07]} 15. Rxc5 {[%emt 0:00:07]} Bh3 {[%emt 0:01:09]} 16. Qc2 {[%emt 0:00:25]} Bxg2 {[%emt 0:00:50]} 17. Kxg2 {[%emt 0:00:02]} Qe6 {[%emt 0:02:12]} 18. e4 {[%emt 0:00:15]} Red8 {[%emt 0:03:28]} 19. Rd1 {[%emt 0:12:32]} Nd7 {[%emt 0:07:19]} 20. Rc4 {[%emt 0:07:15]} Nb6 {[%emt 0:00:30][%cal Bd7b6,Bb6c8,Bc8d6][%mdl 32]} 21. Rc3 {[%emt 0:01:37]} Rd7 {[%emt 0:09:17]} 22. Bc1 {[%emt 0:00:06]} Rad8 {[%emt 0:00:27]} 23. Be3 {[%emt 0:00:19]} Nc8 {[%emt 0:00:08]} 24. Rb1 {[%emt 0:02:02]} Nd6 {[%emt 0:01:42] [#] aiming for ...Nb5.} 25. Rc5 {[%emt 0:00:06] Inhibits Nb5.} Ne8 {[%emt 0:03:02]} 26. Ne1 {[%emt 0:06:57]} Rd6 {[%emt 0:01:44]} 27. Rc1 {[%emt 0:02:59]} Ra8 {[%emt 0:03:18]} 28. Nf3 {[%emt 0:06:39]} Rad8 {[%emt 0:00:45] The position is equal.} 29. Ne1 {[%emt 0:00:12]} Ra8 {[%emt 0:00:06]} 30. Nf3 {[%emt 0:03:10]} Rad8 {[%emt 0:00:16] An even fight not without its subleties.  Weighted Error Value: White=0.04 (flawless) /Black=0.02 (flawless)} 1/2-1/2

[Event "ESP-chT Honor Division 2022"]
[Site "Linares"]
[Date "2022.09.21"]
[Round "5.8"]
[White "Gukesh D"]
[Black "Tabatabaei, M. Amin"]
[Result "0-1"]
[ECO "C54"]
[WhiteElo "2726"]
[BlackElo "2651"]
[Annotator "TA"]
[PlyCount "78"]
[EventDate "2022.09.17"]
[EventType "team-tourn"]
[EventCountry "ESP"]
[SourceTitle "playchess.com"]
[Source "ChessBase"]
[SourceQuality "1"]
[TimeControl "5400+30"]

{[%evp 13,78,21,35,31,41,46,39,-9,-9,1,39,-11,-6,-16,-9,-47,-59,-55,-40,-67,-66,-135,-143,-152,-141,-179,-169,-174,-168,-195,-175,-231,-229,-227,-170,-263,-254,-239,-256,-248,-245,-254,-250,-237,-184,-216,-197,-285,-283,-275,-310,-459,-471,-471,-470,-468,-447,-500,-463,-443,-451,-434,-406,-366,-304,-485,-447]} 1. e4 e5 {[%emt 0:00:37]} 2. Nf3 {[%emt 0:02:43]} Nc6 {[%emt 0:00:07]} 3. Bc4 {[%emt 0:00:15]} Bc5 {[%emt 0:01:14]} 4. c3 {[%emt 0:01:37]} Nf6 {[%emt 0:00:07]} 5. d3 {[%emt 0:00:51]} d6 {[%emt 0:00:43]} 6. Bg5 {[%emt 0:01:11]} h6 {[%emt 0:00:27]} 7. Bh4 {[%emt 0:00:07]} a6 {[%emt 0:02:12] 7...a5 is the recent fashion.} 8. Nbd2 {[%emt 0:01:54] C54: Giuoco Piano: 4 c3 Nf6, main lines with 5 d4 and 5 d3.} Qe7 {[%emt 0:01:27]} 9. O-O {[%emt 0:05:11]} Ba7 {[%emt 0:00:42]} 10. b4 {[%emt 0:00:45]} (10. a4 $14) 10... g5 $1 $11 {[%emt 0:00:14][%cal Bg7g5,Bg5g4][%mdl 32]} 11. Bg3 {[%emt 0:00:06]} Nd7 $5 {[%emt 0:00:12][%mdl 4] [#] Exploring less charted territory.} 12. Bd5 $146 {[%emt 0:02:48]} (12. a4 $1 $14) ({Predecessor:} 12. a4 Nf8 13. b5 Nd8 14. h3 h5 15. bxa6 bxa6 16. d4 Ng6 17. Re1 h4 18. Bh2 {½-½ (37) Rodriguez Perez,R (2208)-Eckert,D (2275) ICCF email 2020}) 12... h5 {[%emt 0:23:32] Threatens to win with ...h4.} 13. h4 {[%emt 0:12:15]} g4 {[%emt 0:00:17]} 14. Nh2 {[%emt 0:00:42]} (14. Ng5 $2 Nd8 15. Kh1 f6 $17) 14... Nf8 {[%emt 0:00:27]} 15. Kh1 {[%emt 0:05:06]} Ng6 {[%emt 0:02:16]} 16. f3 {[%emt 0:05:50][%cal Rf3g4]} Nd8 {[%emt 0:02:47]} 17. fxg4 {[%emt 0:21:13] White is on the road to losing.} (17. Qe1 $1 $15) 17... hxg4 $17 {[%emt 0:01:28]} 18. d4 {[%emt 0:08:29]} (18. Nxg4 $2 Qg5 19. Nf3 Qxg4 $19) 18... Nxh4 {[%emt 0:06:36]} 19. Nc4 {[%emt 0:02:17][%cal Rd4e5] [#]} Ng6 {[%emt 0:01:28]} 20. Ne3 {[%emt 0:06:00] [#]} Qg5 $1 {[%emt 0:06:02]} (20... c6 21. Bb3 $11) 21. Qd2 {[%emt 0:05:46]} Nf4 {[%emt 0:08:28] White must now prevent ...Nh5.} 22. Qf2 {[%emt 0:01:35]} (22. Rad1 $142) 22... Nde6 $19 {[%emt 0:16:58]} (22... exd4 23. cxd4 Nh5 24. Bh4 $17 (24. Bxf7+ $2 Nxf7 25. Qxf7+ Kd8 $19)) 23. Rad1 {[%emt 0:03:12]} Rh7 {[%emt 0:02:28]} (23... exd4 24. cxd4 f6 25. Bxe6 (25. Bxf4 Nxf4 26. Qxf4 Qxf4 $14) 25... Nxe6 26. Nd5 $16) 24. a4 {[%emt 0:07:53]} (24. Qe1 {is a better defense.}) 24... Nh5 {[%emt 0:01:45]} 25. Bh4 {[%emt 0:04:12]} g3 {[%emt 0:00:36]} 26. Bxg5 {[%emt 0:00:05]} gxf2 {[%emt 0:02:21][%cal Rh5g3] Chess con chili.} 27. Bh4 {[%emt 0:00:00] Against Ng3+} exd4 {[%emt 0:00:13]} 28. cxd4 {[%emt 0:00:05]} Bxd4 {[%emt 0:03:32]} 29. Neg4 {[%emt 0:00:44]} Ba7 {[%emt 0:02:30] Hoping for ...Nef4.} (29... Nhf4 30. g3 $17) 30. g3 {[%emt 0:01:26] Inhibits Nef4.} ({Avoid the trap} 30. Bxf2 $2 Nef4 31. Nf6+ Nxf6 $19) (30. Nxf2 {was called for.} Nef4 31. g4) 30... Nf8 {[%emt 0:00:59]} 31. Kg2 {[%emt 0:00:33]} Rg7 {[%emt 0:02:50][%cal Bh7g7,Bg7g4,Bg4b4][%mdl 32]} 32. b5 {[%emt 0:01:01]} (32. Nf6+ $142 Nxf6 33. Bxf6) 32... axb5 {[%emt 0:00:34]} ({Don't go for} 32... Bxg4 $2 33. Nxg4 Rxg4 34. Bxb7 $19) 33. axb5 {[%emt 0:00:01][%cal Od1a1]} Bxg4 {[%emt 0:03:29]} 34. Nxg4 {[%emt 0:00:05]} Rxg4 {[%emt 0:00:03]} 35. Ra1 {[%emt 0:00:57]} Nf4+ {[%emt 0:00:46]} 36. Kf3 {[%emt 0:00:06]} Nxd5 {[%emt 0:00:05]} 37. exd5 {[%emt 0:00:34]} Rb4 {[%emt 0:01:24]} 38. Rxf2 {[%emt 0:00:42]} Ng6 {[%emt 0:00:14]} ({And not} 38... Rxb5 39. Re2+ Ne6 40. dxe6 $15) 39. Bf6 {[%emt 0:00:59]} (39. Rfa2 {was the only chance.}) 39... Kd7 {[%emt 0:00:58] Weighted Error Value: White=0.43/Black=0.14 (very precise)} 0-1

[Event "ESP-chT Honor Division 2022"]
[Site "Linares"]
[Date "2022.09.21"]
[Round "5.9"]
[White "Iturrizaga Bonelli, Eduardo"]
[Black "Santos Ruiz, Miguel"]
[Result "1/2-1/2"]
[ECO "D36"]
[WhiteElo "2630"]
[BlackElo "2581"]
[Annotator "TA"]
[PlyCount "72"]
[EventDate "2022.09.17"]
[EventType "team-tourn"]
[EventCountry "ESP"]
[SourceTitle "playchess.com"]
[Source "ChessBase"]
[SourceQuality "1"]
[TimeControl "5400+30"]

{[%evp 11,72,11,21,16,19,27,30,21,25,18,25,14,16,22,14,25,31,34,29,0,0,0,0,0,20,0,0,0,0,0,0,0,0,0,0,0,0,0,0,0,0,0,0,0,0,0,0,0,0,0,0,0,0,0,0,0,0,0,0,0,0,0,0]} 1. d4 {[%emt 0:00:51]} d5 {[%emt 0:00:10]} 2. c4 {[%emt 0:00:06]} e6 {[%emt 0:00:06]} 3. Nc3 {[%emt 0:00:06]} Nf6 {[%emt 0:00:05]} 4. cxd5 {[%emt 0:00:05]} exd5 {[%emt 0:00:04]} 5. Bg5 {[%emt 0:00:06]} c6 {[%emt 0:00:06]} 6. Qc2 {[%emt 0:00:33]} h6 {[%emt 0:00:11]} 7. Bh4 {[%emt 0:00:09] D36: Queen's Gambit Declined: Exchange Variation: Main line (5 Bg5 c6 6 Qc2).} g6 {[%emt 0:00:13]} 8. e3 {[%emt 0:04:33]} Bf5 {[%emt 0:00:32]} 9. Bd3 {[%emt 0:00:06] White has an edge.} Bxd3 {[%emt 0:00:07]} 10. Qxd3 {[%emt 0:00:03]} Nbd7 {[%emt 0:00:11]} 11. Nge2 {[%emt 0:02:00]} Bg7 {[%emt 0:01:33]} 12. O-O {[%emt 0:00:09]} O-O {[%emt 0:00:14]} 13. b4 {[%emt 0:10:57]} b5 {[%emt 0:07:11]} 14. a4 {[%emt 0:05:38]} a6 {[%emt 0:00:31] [#]} 15. Ra2 $146 {[%emt 0:00:20]} ({Predecessor:} 15. a5 Qe7 16. Rab1 Rae8 17. Rfc1 g5 18. Bg3 Qe6 19. Qc2 Nh5 20. Nd1 f5 21. Bc7 {½-½ (49) Lysyj,I (2671)-Khismatullin,D (2651) Poikovsky 2015}) 15... Qe7 {[%emt 0:04:29] The position is equal.} 16. Rfa1 {[%emt 0:04:20][%cal Ra4b5]} Nb6 {[%emt 0:00:28]} 17. Qb1 {[%emt 0:04:27]} Rfe8 {[%emt 0:06:23]} 18. Bxf6 {[%emt 0:06:46]} Qxf6 {[%emt 0:01:14]} 19. Nf4 {[%emt 0:00:08][%cal Be2f4,Bf4d3,Bd3c5][%mdl 32]} Bf8 {[%emt 0:05:25]} 20. Nd3 {[%emt 0:10:31]} Bd6 {[%emt 0:02:44]} 21. Nc5 {[%emt 0:02:02]} h5 {[%emt 0:03:05]} 22. Qd3 {[%emt 0:03:05]} Qg5 {[%emt 0:10:42]} 23. e4 {[%emt 0:08:35]} dxe4 {[%emt 0:03:15]} 24. N3xe4 {[%emt 0:00:20]} Qe7 {[%emt 0:00:20]} 25. axb5 {[%emt 0:03:13]} axb5 {[%emt 0:01:05]} 26. Rxa8 {[%emt 0:00:09]} Nxa8 {[%emt 0:01:29]} 27. Nd7 {[%emt 0:05:06] [#] Threatens to win with Ndf6+.} Kg7 {[%emt 0:03:00]} (27... Bxh2+ $2 28. Kxh2 Kg7 29. Ndf6 $18) 28. Ndf6 {[%emt 0:00:59]} Rd8 {[%emt 0:00:39][%cal Od6e5] Hoping for ...Be5!} 29. Qe3 {[%emt 0:03:17] Black must now prevent Rc1.} Nb6 {[%emt 0:06:34]} 30. Qg5 {[%emt 0:04:36] And now Nxh5+ would win.} Nd5 {[%emt 0:02:23][%cal Rd5f6]} (30... Bxb4 $2 31. Nxh5+ Kg8 32. Nef6+ Qxf6 33. Nxf6+ $18) 31. Nxh5+ {[%emt 0:02:09] Pair of Knights!} Kg8 {[%emt 0:01:04] [#] ...Qxg5 is the strong threat.} 32. Nef6+ {[%emt 0:01:18]} Nxf6 {[%emt 0:00:08]} 33. Nxf6+ {[%emt 0:00:06]} Kg7 {[%emt 0:00:02]} 34. Nh5+ {[%emt 0:00:16]} Kh7 {[%emt 0:00:55]} 35. Nf6+ {[%emt 0:00:11]} Kg7 {[%emt 0:00:03]} 36. Nh5+ {[%emt 0:00:07]} Kh7 {[%emt 0:00:03] Weighted Error Value: White=0.02 (flawless) /Black=0.01 (flawless)} 1/2-1/2

[Event "ESP-chT Honor Division 2022"]
[Site "Linares"]
[Date "2022.09.21"]
[Round "5.10"]
[White "Muzychuk, Anna"]
[Black "Yuffa, Daniil"]
[Result "1/2-1/2"]
[ECO "B97"]
[WhiteElo "2526"]
[BlackElo "2600"]
[Annotator "TA"]
[PlyCount "47"]
[EventDate "2022.09.17"]
[EventType "team-tourn"]
[EventCountry "ESP"]
[SourceTitle "playchess.com"]
[Source "ChessBase"]
[SourceQuality "1"]
[TimeControl "5400+30"]

{[%evp 19,47,0,0,0,21,20,23,16,9,16,14,0,0,6,0,0,0,0,0,0,5,0,0,0,0,0,0,0,0,0]} 1. e4 {[%emt 0:00:08]} c5 {[%emt 0:01:39]} 2. Nf3 {[%emt 0:00:06]} d6 {[%emt 0:00:22]} 3. d4 {[%emt 0:00:10]} cxd4 {[%emt 0:00:24]} 4. Nxd4 {[%emt 0:00:06]} Nf6 {[%emt 0:00:13]} 5. Nc3 {[%emt 0:00:09]} a6 {[%emt 0:00:12]} 6. Bg5 {[%emt 0:00:13]} e6 {[%emt 0:01:25]} 7. f4 {[%emt 0:04:27]} Qb6 {[%emt 0:01:15]} 8. Qd2 {[%emt 0:01:18]} Qxb2 {[%emt 0:00:48]} 9. Rb1 {[%emt 0:00:07]} Qa3 {[%emt 0:00:11]} 10. f5 $1 {[%emt 0:02:52][%mdl 4] outshines the older 10.e5.} Nc6 {[%emt 0:01:27]} 11. fxe6 {[%emt 0:02:19] B97: Sicilian Najdorf: Poisoned Pawn.} Bxe6 {[%emt 0:01:11]} 12. Rxb7 {[%emt 0:01:33]} Nxd4 {[%emt 0:00:38]} 13. Qxd4 {[%emt 0:00:07] aiming for Nd5. White has an edge.} Be7 $1 {[%emt 0:01:04] The position is equal.} 14. Bc4 {[%emt 0:02:17]} Rc8 {[%emt 0:02:20]} 15. Bb3 {[%emt 0:03:05] [#]} Bxb3 $146 {[%emt 0:09:04]} ({Predecessor:} 15... Qc5 16. Qxc5 Rxc5 17. Nd5 Nxd5 18. exd5 Bxg5 19. dxe6 fxe6 20. O-O Bf6 21. Rb8+ Bd8 22. Bxe6 {1-0 (40) Beliavsky,A (2595)-Buljovcic,I (2430) Novi Sad 1979}) 16. cxb3 {[%emt 0:00:48]} h6 {[%emt 0:00:20]} 17. Bd2 {[%emt 0:02:25]} Bd8 $1 {[%emt 0:01:32]} 18. O-O {[%emt 0:00:52] e5 is the strong threat.} O-O $1 {[%emt 0:00:48]} 19. h3 {[%emt 0:15:28]} Qb2 {[%emt 0:05:35][%cal Of6e4]} 20. Rb1 {[%emt 0:08:36]} Qc2 {[%emt 0:02:54][%cal Oc8c3]} 21. Rc1 {[%emt 0:01:04]} Qb2 {[%emt 0:00:11][%cal Of6e4] And now ...Nxe4! would win.} 22. Rb1 {[%emt 0:00:37]} (22. Qxd6 $2 Rxc3 $1 {[%mdl 512]} 23. Rxc3 Nxe4 $19) 22... Qc2 {[%emt 0:00:07][%cal Oc8c3] Strongly threatening ...Rxc3!} 23. Rc1 {[%emt 0:00:04]} Qb2 {[%emt 0:00:09][%cal Of6e4] White must now prevent ...Nxe4!} 24. Rb1 {An interesting draw.  Weighted Error Value: White=0.03 (flawless) /Black=0.01 (flawless)} ({Don't go for} 24. Qxd6 $2 {[#]} Rxc3 $1 {[%mdl 512]} 25. Rxc3 Nxe4 $19) 1/2-1/2

[Event "ESP-chT Honor Division 2022"]
[Site "Linares"]
[Date "2022.09.21"]
[Round "5.11"]
[White "Ibarra Jerez, Jose Carlos"]
[Black "Korneev, Oleg"]
[Result "1/2-1/2"]
[ECO "C45"]
[WhiteElo "2570"]
[BlackElo "2460"]
[Annotator "TA"]
[PlyCount "86"]
[EventDate "2022.09.17"]
[EventType "team-tourn"]
[EventCountry "ESP"]
[SourceTitle "playchess.com"]
[Source "ChessBase"]
[SourceQuality "1"]
[TimeControl "5400+30"]

{[%evp 13,86,0,0,0,10,21,16,19,27,14,2,18,10,15,19,26,93,108,101,106,92,16,12,14,8,7,18,20,15,27,20,8,15,10,29,0,6,3,38,41,46,37,58,41,53,15,43,0,0,0,0,0,0,0,0,0,0,0,0,0,0,0,0,0,0,0,0,0,0,0,0,0,0,0,0]} 1. e4 {[%emt 0:00:02]} e5 {[%emt 0:02:26]} 2. Nf3 {[%emt 0:00:21]} Nc6 {[%emt 0:00:03]} 3. d4 {[%emt 0:00:15]} exd4 {[%emt 0:00:04]} 4. Nxd4 {[%emt 0:00:12]} Bc5 {[%emt 0:00:16]} 5. Be3 {[%emt 0:00:58]} Qf6 {[%emt 0:01:38]} 6. c3 {[%emt 0:01:03]} Nge7 {[%emt 0:00:06]} 7. Bb5 {[%emt 0:01:04]} O-O {[%emt 0:23:26]} 8. O-O {[%emt 0:01:03] C45: Scotch Game.} Bb6 {[%emt 0:05:37]} 9. a4 {[%emt 0:01:27]} a6 {[%emt 0:11:43]} 10. Bc4 {[%emt 0:02:34]} Ne5 {[%emt 0:04:43]} 11. Be2 {[%emt 0:12:51]} d5 {[%emt 0:20:19]} 12. f4 {[%emt 0:12:05]} N5c6 {[%emt 0:00:14]} 13. e5 {[%emt 0:02:52]} Qh6 {[%emt 0:00:01]} 14. Qd2 {[%emt 0:03:04] [#]} Nf5 $146 {[%emt 0:02:03]} (14... Nxd4 $11 {keeps the balance.} 15. cxd4 Bf5) ({Predecessor:} 14... f5 15. Rf3 Nxd4 16. cxd4 a5 17. Nc3 c6 18. Rh3 Qe6 19. Kh1 Kh8 20. Rg1 Qf7 {1-0 (50) Bortnyk,O (2598)-Hansen,S (2557) Chess.com INT 2020}) 15. Nxf5 $16 {[%emt 0:05:15]} Bxf5 {[%emt 0:00:02]} 16. Bxb6 {[%emt 0:00:19]} cxb6 {[%emt 0:00:02]} 17. Bd3 {[%emt 0:07:21]} (17. Qxd5 $16 {With the idea Na3.} Qg6 18. Qf3) 17... Bxd3 {[%emt 0:20:15]} 18. Qxd3 {[%emt 0:00:12]} d4 {[%emt 0:00:45]} 19. cxd4 {[%emt 0:07:25]} Rad8 {[%emt 0:00:16]} 20. d5 {[%emt 0:00:47] [#] And now Nc3 would win.} Nb4 {[%emt 0:00:05][%csl LRd3,LRd5]} 21. Qe4 {[%emt 0:00:42]} Nxd5 {[%emt 0:00:09]} 22. Na3 {[%emt 0:02:50]} b5 {[%emt 0:01:25] Inhibits Nc4.} 23. axb5 {[%emt 0:01:58]} axb5 {[%emt 0:00:03]} 24. Rae1 {[%emt 0:05:10]} Qb6+ {[%emt 0:02:56]} 25. Kh1 {[%emt 0:01:13]} f5 {[%emt 0:00:35]} 26. Qf3 {[%emt 0:01:51]} Nc7 {[%emt 0:01:01]} 27. Rd1 {[%emt 0:05:51] Inhibits Rd2.} h6 {[%emt 0:02:54]} 28. Qb3+ {[%emt 0:09:52]} Qe6 {[%emt 0:00:51]} 29. Qb4 {[%emt 0:01:44]} Nd5 {[%emt 0:00:07]} 30. Qxb5 {[%emt 0:01:14]} Ne3 {[%emt 0:00:43][%csl LRd1,LRf1] Prevents Qc4. The position is equal.} 31. Rxd8 {[%emt 0:00:08]} Rxd8 {[%emt 0:00:02][%cal Bf8d8,Bd8d4,Bd4e4,Be4f4,Bf4f2,Bf2b2,Bb2b7,Bb7e7,Be7e5][%mdl 32]} 32. Rg1 {[%emt 0:01:16]} Rd4 {[%emt 0:01:08]} 33. Qc5 {[%emt 0:01:54]} ({Don't play} 33. Qxb7 Rxf4 34. Qb5 Re4 $17) 33... Re4 {[%emt 0:00:11]} 34. Nb5 {[%emt 0:00:53] [#] Strongly threatening Nd6.} Qc6 {[%emt 0:00:50]} 35. Qxc6 {[%emt 0:05:12]} bxc6 $11 {[%emt 0:00:01][%mdl 4096] Endgame KRN-KRN} 36. Nd6 {[%emt 0:00:01]} Rxf4 {[%emt 0:00:08]} 37. Re1 {[%emt 0:01:01] Black must now prevent g3.} Nd5 {[%emt 0:01:18]} 38. g3 {[%emt 0:00:46]} Rf2 {[%emt 0:00:07]} 39. Kg1 {[%emt 0:00:16]} Rxb2 {[%emt 0:00:04]} 40. Nxf5 {[%emt 0:00:28]} Rb7 {[%emt 0:01:07]} 41. Rc1 {[%emt 0:01:29]} Ne7 {[%emt 0:00:23]} 42. Nxe7+ {[%emt 0:01:47]} Rxe7 {[%emt 0:00:01]} 43. Rxc6 {[%emt 0:00:13]} Rxe5 {Weighted Error Value: White=0.08 (flawless) /Black=0.08 (flawless)} 1/2-1/2